lending/lending_fUSD_20250719
["ID","MTS","AMOUNT","RATE_DAILY","PERIOD"]
[373267795,1752925895712,-480.0,0.00019616,2]
[373267796,1752925895721,-570.29,0.00019616,2]
[373267797,1752925895731,-480.0,0.00019616,2]
[373267798,1752925895740,-480.0,0.00019616,2]
[373267799,1752925895750,-480.0,0.00019616,2]
[373267800,1752925895759,-480.0,0.00019616,2]
[373267801,1752925895768,-1249.6,0.00019616,2]
[373267802,1752925895778,-480.0,0.00019616,2]
[373267803,1752925895787,-480.0,0.00019616,2]
[373267804,1752925895797,-545.98,0.00019616,2]
[373267805,1752925895807,-517.22,0.00019616,2]
[373267806,1752925895816,-480.0,0.00019616,2]
[373267807,1752925895825,-525.96,0.00019616,2]
[373267808,1752925895835,-385.96755913,0.00019616,2]
[373267809,1752925895844,-480.0,0.00019616,2]
[373267810,1752925895854,-480.0,0.00019616,2]
[373267811,1752925895863,-480.0,0.00019616,2]
[373267812,1752925895872,-480.0,0.00019616,2]
[373267813,1752925895882,-480.0,0.00019616,2]
[373267814,1752925895892,-480.0,0.00019616,2]
[373267815,1752925895901,-480.0,0.00019616,2]
[373267816,1752925895911,-728.86,0.00019616,2]
[373267817,1752925895920,-1316.89,0.00019616,2]
[373267818,1752925895930,-480.0,0.00019616,2]
[373267819,1752925895939,-480.0,0.00019616,2]
[373267820,1752925895948,-480.0,0.00019616,2]
[373267821,1752925895958,-480.0,0.00019616,2]
[373267822,1752925895967,-815.4,0.00019616,2]
[373267823,1752925895976,-480.0,0.00019616,2]
[373267824,1752925895986,-1101.71,0.00019616,2]
[373267825,1752925895995,-480.0,0.00019616,2]
[373267826,1752925896005,-480.0,0.00019616,2]
[373267827,1752925896014,-480.0,0.00019616,2]
[373267828,1752925896023,-480.0,0.00019616,2]
[373267829,1752925896033,-748.45,0.00019616,2]
[373267830,1752925896042,-1336.055073,0.00019616,2]
[373267831,1752925896051,-1293.804523,0.00019616,2]
[373267832,1752925896063,-573.22,0.00019616,2]
[373267833,1752925896072,-480.0,0.00019616,2]
[373267834,1752925896082,-745.78,0.00019616,2]
[373267835,1752925896091,-480.0,0.00019616,2]
[373267836,1752925896100,-480.0,0.00019616,2]
[373267837,1752925896110,-480.0,0.00019616,2]
[373267838,1752925896119,-1617.28,0.00019616,2]
[373267839,1752925896128,-480.0,0.00019616,2]
[373267840,1752925896137,-690.32,0.00019616,2]
[373267841,1752925896146,-480.0,0.00019616,2]
[373267842,1752925896155,-480.0,0.00019616,2]
[373267843,1752925896164,-658.12,0.00019616,2]
[373267844,1752925896173,-1070.92,0.00019616,2]
[373267845,1752925896183,-480.0,0.00019616,2]
[373267846,1752925896192,-934.12,0.00019616,2]
[373267847,1752925896202,-480.0,0.00019616,2]
[373267848,1752925896211,-1174.42,0.00019616,2]
[373267849,1752925896221,-480.0,0.00019616,2]
[373267850,1752925896237,-1202.04,0.00019616,2]
[373267851,1752925896248,-417.72994457,0.00019616,2]
[373267852,1752925896259,-480.0,0.00019616,2]
[373267853,1752925896270,-480.0,0.00019616,2]
[373267854,1752925896280,-480.0,0.00019616,2]
[373267855,1752925896290,-815.86,0.00019616,2]
[373267856,1752925896302,-1628.87,0.00019616,2]
[373267857,1752925896312,-1494.63,0.00019616,2]
[373267858,1752925896322,-480.0,0.00019616,2]
[373267859,1752925896331,-374.0,0.00019616,2]
[373267860,1752925896342,-480.0,0.00019616,2]
[373267861,1752925896352,-830.69,0.00019616,2]
[373267862,1752925896361,-480.0,0.00019616,2]
[373267863,1752925896370,-480.0,0.00019616,2]
[373267864,1752925896380,-480.0,0.00019616,2]
[373267865,1752925896389,-480.0,0.00019616,2]
[373267866,1752925896398,-480.0,0.00019616,2]
[373267867,1752925896409,-543.78,0.00019616,2]
[373267868,1752925896419,-393.51287583,0.00019616,2]
[373267869,1752925896428,-480.0,0.00019616,2]
[373267870,1752925896438,-2089.05,0.00019616,2]
[373267871,1752925896447,-480.0,0.00019616,2]
[373267872,1752925896457,-657.72,0.00019616,2]
[373267873,1752925896467,-1437.33,0.00019616,2]
[373267874,1752925896476,-480.0,0.00019616,2]
[373267875,1752925896486,-480.0,0.00019616,2]
[373267876,1752925896495,-537.05,0.00019616,2]
[373267877,1752925896504,-363.9718677,0.00019616,2]
[373267878,1752925896514,-480.0,0.00019616,2]
[373267879,1752925896523,-480.0,0.00019616,2]
[373267880,1752925896532,-480.0,0.00019616,2]
[373267881,1752925896542,-161.6267128,0.00019616,2]
[373267882,1752925896551,-480.0,0.00019616,2]
[373267883,1752925896561,-480.0,0.00019616,2]
[373267884,1752925896570,-635.8,0.00019616,2]
[373267885,1752925896581,-581.67,0.00019616,2]
[373267886,1752925896592,-516.44,0.00019616,2]
[373267887,1752925896602,-1539.584669,0.00019616,2]
[373267888,1752925896613,-387.94660228,0.00019616,2]
[373267889,1752925896624,-480.0,0.00019616,2]
[373267890,1752925896633,-480.0,0.00019616,2]
[373267891,1752925896643,-2843.45,0.00019616,2]
[373267892,1752925896652,-480.0,0.00019616,2]
[373267893,1752925896662,-480.0,0.00019616,2]
[373267894,1752925896671,-480.0,0.00019616,2]
[373267895,1752925896681,-588.93848359,0.00019616,2]
[373267896,1752925896691,-480.0,0.00019616,2]
[373267897,1752925896701,-480.0,0.00019616,2]
[373267898,1752925896711,-935.75,0.00019616,2]
[373267899,1752925896721,-480.0,0.00019616,2]
[373267900,1752925896731,-480.0,0.00019616,2]
[373267901,1752925896740,-553.19,0.00019616,2]
[373267902,1752925896749,-629.13,0.00019616,2]
[373267903,1752925896759,-480.0,0.00019616,2]
[373267904,1752925896768,-789.27,0.00019616,2]
[373267905,1752925896778,-480.0,0.00019616,2]
[373267906,1752925896787,-480.0,0.00019616,2]
[373267907,1752925896797,-480.0,0.00019616,2]
[373267908,1752925896806,-534.81,0.00019616,2]
[373267909,1752925896815,-367.68893214,0.00019616,2]
[373267910,1752925896825,-480.0,0.00019616,2]
[373267911,1752925896834,-480.0,0.00019616,2]
[373267912,1752925896844,-488.79,0.00019616,2]
[373267913,1752925896853,-937.31,0.00019616,2]
[373267914,1752925896862,-480.0,0.00019616,2]
[373267915,1752925896871,-480.0,0.00019616,2]
[373267916,1752925896881,-480.0,0.00019616,2]
[373267917,1752925896891,-480.0,0.00019616,2]
[373267918,1752925896900,-2978.15,0.00019616,2]
[373267919,1752925896909,-480.0,0.00019616,2]
[373267920,1752925896918,-480.0,0.00019616,2]
[373267921,1752925896928,-323.02327427,0.00019616,2]
[373267922,1752925896938,-480.0,0.00019616,2]
[373267923,1752925896947,-480.0,0.00019616,2]
[373267924,1752925896958,-588.55,0.00019616,2]
[373267925,1752925896967,-380.0,0.00019616,2]
[373267926,1752925896977,-534.31,0.00019616,2]
[373267927,1752925896986,-480.0,0.00019616,2]
[373267928,1752925896996,-480.0,0.00019616,2]
[373267929,1752925897007,-480.0,0.00019616,2]
[373267930,1752925897016,-480.0,0.00019616,2]
[373267931,1752925897025,-480.0,0.00019616,2]
[373267932,1752925897035,-874.31,0.00019616,2]
[373267933,1752925897045,-5707.74,0.00019616,2]
[373267934,1752925897054,-480.0,0.00019616,2]
[373267935,1752925897064,-742.13,0.00019616,2]
[373267936,1752925897073,-1001.03,0.00019616,2]
[373267937,1752925897082,-480.0,0.00019616,2]
[373267938,1752925897092,-1089.17,0.00019616,2]
[373267939,1752925897101,-480.0,0.00019616,2]
[373267940,1752925897110,-380.0,0.00019616,2]
[373267941,1752925897119,-480.0,0.00019616,2]
[373267942,1752925897129,-480.0,0.00019616,2]
[373267943,1752925897138,-480.0,0.00019616,2]
[373267944,1752925897147,-480.0,0.00019616,2]
[373267945,1752925897157,-480.0,0.00019616,2]
[373267946,1752925897167,-827.74,0.00019616,2]
[373267947,1752925897176,-985.41,0.00019616,2]
[373267948,1752925897186,-883.65,0.00019616,2]
[373267949,1752925897195,-480.0,0.00019616,2]
[373267950,1752925897206,-480.0,0.00019616,2]
[373267951,1752925897216,-630.85,0.00019616,2]
[373267952,1752925897231,-480.0,0.00019616,2]
[373267953,1752925897242,-480.0,0.00019616,2]
[373267954,1752925897252,-725.32,0.00019616,2]
[373267955,1752925897262,-594.58,0.00019616,2]
[373267956,1752925897273,-546.59,0.00019616,2]
[373267957,1752925897283,-480.0,0.00019616,2]
[373267958,1752925897293,-367.68204546,0.00019616,2]
[373267959,1752925897305,-480.0,0.00019616,2]
[373267960,1752925897317,-961.48,0.00019616,2]
[373267961,1752925897327,-480.0,0.00019616,2]
[373267962,1752925897338,-480.0,0.00019616,2]
[373267963,1752925897349,-480.0,0.00019616,2]
[373267964,1752925897358,-421.70703971,0.00019616,2]
[373267965,1752925897369,-389.16562369,0.00019616,2]
[373267966,1752925897379,-480.0,0.00019616,2]
[373267967,1752925897389,-1312.32,0.00019616,2]
[373267968,1752925897399,-481.15,0.00019616,2]
[373267969,1752925897409,-480.0,0.00019616,2]
[373267970,1752925897419,-3316.07,0.00019616,2]
[373267971,1752925897429,-493.61,0.00019616,2]
[373267972,1752925897439,-480.0,0.00019616,2]
[373267973,1752925897449,-480.0,0.00019616,2]
[373267974,1752925897460,-385.68924238,0.00019616,2]
[373267975,1752925897470,-480.0,0.00019616,2]
[373267976,1752925897480,-480.0,0.00019616,2]
[373267977,1752925897490,-480.0,0.00019616,2]
[373267978,1752925897500,-480.0,0.00019616,2]
[373267979,1752925897510,-480.0,0.00019616,2]
[373267980,1752925897520,-1168.4,0.00019616,2]
[373267981,1752925897530,-480.0,0.00019616,2]
[373267982,1752925897540,-3075.77,0.00019616,2]
[373267983,1752925897550,-480.0,0.00019616,2]
[373267984,1752925897560,-420.94133678,0.00019616,2]
[373267985,1752925897570,-558.22,0.00019616,2]
[373267986,1752925897580,-538.42,0.00019616,2]
[373267987,1752925897590,-480.0,0.00019616,2]
[373267988,1752925897600,-480.0,0.00019616,2]
[373267989,1752925897610,-2213.01,0.00019616,2]
[373267990,1752925897620,-480.0,0.00019616,2]
[373267991,1752925897630,-296.77838041,0.00019616,2]
[373267992,1752925897641,-617.33,0.00019616,2]
[373267993,1752925897651,-480.0,0.00019616,2]
[373267994,1752925897662,-480.0,0.00019616,2]
[373267995,1752925897672,-480.0,0.00019616,2]
[373267996,1752925897683,-480.0,0.00019616,2]
[373267997,1752925897692,-480.0,0.00019616,2]
[373267998,1752925897703,-480.0,0.00019616,2]
[373267999,1752925897713,-480.0,0.00019616,2]
[373268000,1752925897723,-480.0,0.00019616,2]
[373268001,1752925897734,-480.0,0.00019616,2]
[373268002,1752925897744,-1282.83,0.00019616,2]
[373268003,1752925897754,-480.0,0.00019616,2]
[373268004,1752925897764,-480.0,0.00019616,2]
[373268005,1752925897774,-480.0,0.00019616,2]
[373268006,1752925897784,-480.0,0.00019616,2]
[373268007,1752925897794,-480.0,0.00019616,2]
[373268008,1752925897804,-480.0,0.00019616,2]
[373268009,1752925897814,-901.37,0.00019616,2]
[373268010,1752925897824,-643.18,0.00019616,2]
[373268011,1752925897834,-480.0,0.00019616,2]
[373268012,1752925897843,-480.0,0.00019616,2]
[373268013,1752925897854,-1874.62,0.00019616,2]
[373268014,1752925897863,-480.0,0.00019616,2]
[373268015,1752925897873,-480.0,0.00019616,2]
[373268016,1752925897885,-480.0,0.00019616,2]
[373268017,1752925897896,-2423.29,0.00019616,2]
[373268018,1752925897905,-480.0,0.00019616,2]
[373268019,1752925897915,-480.0,0.00019616,2]
[373268020,1752925897925,-480.0,0.00019616,2]
[373268021,1752925897935,-480.0,0.00019616,2]
[373268022,1752925897946,-480.0,0.00019616,2]
[373268023,1752925897958,-480.0,0.00019616,2]
[373268024,1752925897968,-360.0,0.00019616,2]
[373268025,1752925897977,-480.0,0.00019616,2]
[373268026,1752925897988,-480.0,0.00019616,2]
[373268027,1752925897998,-733.01,0.00019616,2]
[373268028,1752925898009,-570.78,0.00019616,2]
[373268029,1752925898020,-853.43,0.00019616,2]
[373268030,1752925898030,-1074.29,0.00019616,2]
[373268031,1752925898041,-480.0,0.00019616,2]
[373268032,1752925898051,-769.55,0.00019616,2]
[373268033,1752925898062,-1019.51,0.00019616,2]
[373268034,1752925898072,-480.0,0.00019616,2]
[373268035,1752925898083,-1297.2,0.00019616,2]
[373268036,1752925898305,-480.0,0.00019616,2]
[373268037,1752925898315,-480.0,0.00019616,2]
[373268038,1752925898325,-480.0,0.00019616,2]
[373268039,1752925898335,-642.8,0.00019616,2]
[373268040,1752925898344,-480.0,0.00019616,2]
[373268041,1752925898354,-375.6540266,0.00019616,2]
[373268042,1752925898364,-480.0,0.00019616,2]
[373268043,1752925898374,-480.0,0.00019616,2]
[373268044,1752925898384,-548.31,0.00019616,2]
[373268045,1752925898394,-420.0,0.00019616,2]
[373268046,1752925898404,-480.0,0.00019616,2]
[373268047,1752925898414,-1847.27,0.00019616,2]
[373268048,1752925898424,-480.0,0.00019616,2]
[373268049,1752925898434,-480.0,0.00019616,2]
[373268050,1752925898444,-927.42,0.00019616,2]
[373268051,1752925898455,-4709.51,0.00019616,2]
[373268052,1752925898465,-480.0,0.00019616,2]
[373268053,1752925898475,-913.62,0.00019616,2]
[373268054,1752925898485,-480.0,0.00019616,2]
[373268055,1752925898494,-480.0,0.00019616,2]
[373268056,1752925898504,-506.89,0.00019616,2]
[373268057,1752925898514,-551.33547063,0.00019616,2]
[373268058,1752925898523,-859.02,0.00019616,2]
[373268059,1752925898534,-781.8,0.00019616,2]
[373268060,1752925898543,-1631.07,0.00019616,2]
[373268061,1752925898553,-644.67,0.00019616,2]
[373268062,1752925898563,-480.0,0.00019616,2]
[373268063,1752925898573,-480.0,0.00019616,2]
[373268064,1752925898583,-480.0,0.00019616,2]
[373268065,1752925898593,-596.88,0.00019616,2]
[373268066,1752925898603,-555.41,0.00019616,2]
[373268067,1752925898612,-480.0,0.00019616,2]
[373268068,1752925898622,-480.0,0.00019616,2]
[373268069,1752925898632,-480.0,0.00019616,2]
[373268070,1752925898642,-553.68,0.00019616,2]
[373268071,1752925898651,-480.0,0.00019616,2]
[373268072,1752925898661,-1000.0,0.00019616,2]
[373268073,1752925898671,-480.0,0.00019616,2]
[373268074,1752925898681,-3337.6,0.00019616,2]
[373268075,1752925898691,-520.06,0.00019616,2]
[373268076,1752925898701,-480.0,0.00019616,2]
[373268077,1752925898711,-480.0,0.00019616,2]
[373268078,1752925898721,-874.98,0.00019616,2]
[373268079,1752925898732,-480.0,0.00019616,2]
[373268080,1752925898741,-480.0,0.00019616,2]
[373268081,1752925898752,-480.0,0.00019616,2]
[373268082,1752925898762,-480.0,0.00019616,2]
[373268083,1752925898772,-1018.91,0.00019616,2]
[373268084,1752925898783,-480.0,0.00019616,2]
[373268085,1752925898794,-480.0,0.00019616,2]
[373268086,1752925898804,-480.0,0.00019616,2]
[373268087,1752925898814,-575.14,0.00019616,2]
[373268088,1752925898824,-480.0,0.00019616,2]
[373268089,1752925898834,-1603.56,0.00019616,2]
[373268090,1752925898844,-480.0,0.00019616,2]
[373268091,1752925898853,-950.21,0.00019616,2]
[373268092,1752925898864,-480.0,0.00019616,2]
[373268093,1752925898874,-716.19,0.00019616,2]
[373268094,1752925898884,-480.0,0.00019616,2]
[373268095,1752925898894,-480.0,0.00019616,2]
[373268096,1752925898903,-480.0,0.00019616,2]
[373268097,1752925898913,-785.71,0.00019616,2]
[373268098,1752925898923,-480.0,0.00019616,2]
[373268099,1752925898934,-653.01,0.00019616,2]
[373268100,1752925898944,-480.0,0.00019616,2]
[373268101,1752925898955,-480.0,0.00019616,2]
[373268102,1752925898965,-480.0,0.00019616,2]
[373268103,1752925898974,-480.0,0.00019616,2]
[373268104,1752925898983,-802.07,0.00019616,2]
[373268105,1752925898993,-1379.0,0.00019616,2]
[373268106,1752925899003,-616.21,0.00019616,2]
[373268107,1752925899013,-480.0,0.00019616,2]
[373268108,1752925899023,-480.0,0.00019616,2]
[373268109,1752925899032,-480.0,0.00019616,2]
[373268110,1752925899042,-480.0,0.00019616,2]
[373268111,1752925899052,-622.48,0.00019616,2]
[373268112,1752925899062,-480.0,0.00019616,2]
[373268113,1752925899072,-14833.83,0.00019616,2]
[373268114,1752925899082,-480.0,0.00019616,2]
[373268115,1752925899092,-480.0,0.00019616,2]
[373268116,1752925899101,-480.0,0.00019616,2]
[373268117,1752925899111,-480.0,0.00019616,2]
[373268118,1752925899121,-209.91,0.00019616,2]
[373268119,1752925899131,-986.59322029,0.00019696,2]
[373268120,1752925899140,-1200.0,0.000197,7]
[373268121,1752925899150,-777.28,0.00019703,2]
[373268122,1752925899161,-2456.39,0.00019725,2]
[373268123,1752925899171,-2456.39,0.00019725,2]
[373268124,1752925899181,-566.72,0.00019725,2]
[373268125,1752925899191,-661.12,0.00019725,2]
[373268126,1752925899201,-661.12,0.00019725,2]
[373268127,1752925899212,-661.12,0.00019725,2]
[373268128,1752925899224,-661.12,0.00019725,2]
[373268129,1752925899238,-500.0,0.00019726,2]
[373268130,1752925899247,-150.0,0.00019726,2]
[373268131,1752925899257,-200.0,0.00019726,2]
[373268132,1752925899267,-200.0,0.00019726,2]
[373268133,1752925899277,-454.0,0.00019726,2]
[373268134,1752925899288,-150.0,0.00019726,2]
[373268135,1752925899298,-205.52348752,0.00019726,2]
[373268136,1752925899309,-500.0,0.00019726,2]
[373268137,1752925899319,-266.33933359,0.00019726,2]
[373268138,1752925899329,-250.0,0.00019726,2]
[373268139,1752925899338,-1453.0,0.00019726,2]
[373268140,1752925899348,-150.0,0.00019726,2]
[373268141,1752925899358,-150.0,0.00019726,2]
[373268142,1752925899368,-150.0,0.00019726,2]
[373268143,1752925899377,-150.0,0.00019726,2]
[373268144,1752925899387,-150.0,0.00019726,2]
[373268145,1752925899398,-500.0,0.00019726,2]
[373268146,1752925899408,-150.0,0.00019726,2]
[373268147,1752925899419,-592.0,0.00019726,2]
[373268148,1752925899429,-151.0,0.00019726,2]
[373268149,1752925899439,-151.0,0.00019726,2]
[373268150,1752925899448,-151.0,0.00019726,2]
[373268151,1752925899460,-151.0,0.00019726,2]
[373268152,1752925899469,-480.0,0.00019726,2]
[373268153,1752925899479,-480.0,0.00019726,2]
[373268154,1752925899489,-480.0,0.00019726,2]
[373268155,1752925899499,-480.0,0.00019726,2]
[373268156,1752925899508,-480.0,0.00019726,2]
[373268157,1752925899518,-360.0,0.00019726,2]
[373268158,1752925899528,-497.06611577,0.00019726,2]
[373268159,1752925899537,-480.0,0.00019726,2]
[373268160,1752925899547,-480.0,0.00019726,2]
[373268161,1752925899557,-480.0,0.00019726,2]
[373268162,1752925899567,-480.0,0.00019726,2]
[373268163,1752925899577,-480.0,0.00019726,2]
[373268164,1752925899586,-480.0,0.00019726,2]
[373268165,1752925899596,-480.0,0.00019726,2]
[373268166,1752925899605,-480.0,0.00019726,2]
[373268167,1752925899615,-480.0,0.00019726,2]
[373268168,1752925899625,-480.0,0.00019726,2]
[373268169,1752925899635,-480.0,0.00019726,2]
[373268170,1752925899645,-480.0,0.00019726,2]
[373268171,1752925899655,-380.0,0.00019726,2]
[373268172,1752925899664,-480.0,0.00019726,2]
[373268173,1752925899674,-480.0,0.00019726,2]
[373268174,1752925899686,-188.32,0.00019726,2]
[373268175,1752925899695,-480.0,0.00019726,2]
[373268176,1752925899708,-480.0,0.00019726,2]
[373268177,1752925899718,-480.0,0.00019726,2]
[373268178,1752925899728,-480.0,0.00019726,2]
[373268179,1752925899738,-480.0,0.00019726,2]
[373268180,1752925899748,-480.0,0.00019726,2]
[373268181,1752925899758,-480.0,0.00019726,2]
[373268182,1752925899768,-480.0,0.00019726,2]
[373268183,1752925899778,-480.0,0.00019726,2]
[373268184,1752925899788,-480.0,0.00019726,2]
[373268185,1752925899798,-480.0,0.00019726,2]
[373268186,1752925899808,-568.5,0.00019726,2]
[373268187,1752925899818,-480.0,0.00019726,2]
[373268188,1752925900051,-417.88545056,0.00019726,2]
[373268189,1752925900075,-480.0,0.00019726,2]
[373268190,1752925900085,-480.0,0.00019726,2]
[373268191,1752925900094,-480.0,0.00019726,2]
[373268192,1752925900105,-480.0,0.00019726,2]
[373268193,1752925900115,-590.10617552,0.00019726,2]
[373268194,1752925900124,-349.330925,0.00019726,2]
[373268195,1752925900134,-480.0,0.00019726,2]
[373268196,1752925900144,-480.0,0.00019726,2]
[373268197,1752925900153,-480.0,0.00019726,2]
[373268198,1752925900163,-480.0,0.00019726,2]
[373268199,1752925900172,-480.0,0.00019726,2]
[373268200,1752925900181,-480.0,0.00019726,2]
[373268201,1752925900191,-480.0,0.00019726,2]
[373268202,1752925900200,-480.0,0.00019726,2]
[373268203,1752925900211,-480.0,0.00019726,2]
[373268204,1752925900221,-238.32200002,0.00019726,2]
[373268205,1752925900234,-480.0,0.00019726,2]
[373268206,1752925900243,-480.0,0.00019726,2]
[373268207,1752925900252,-480.0,0.00019726,2]
[373268208,1752925900262,-462.34289493,0.00019726,2]
[373268209,1752925900273,-480.0,0.00019726,2]
[373268210,1752925900282,-387.65482587,0.00019726,2]
[373268211,1752925900292,-393.56005262,0.00019726,2]
[373268212,1752925900302,-480.0,0.00019726,2]
[373268213,1752925900315,-480.0,0.00019726,2]
[373268214,1752925900325,-480.0,0.00019726,2]
[373268215,1752925900335,-480.0,0.00019726,2]
[373268216,1752925900344,-480.0,0.00019726,2]
[373268217,1752925900354,-480.0,0.00019726,2]
[373268218,1752925900364,-480.0,0.00019726,2]
[373268219,1752925900375,-480.0,0.00019726,2]
[373268220,1752925900384,-480.0,0.00019726,2]
[373268221,1752925900394,-480.0,0.00019726,2]
[373268222,1752925900404,-480.0,0.00019726,2]
[373268223,1752925900414,-480.0,0.00019726,2]
[373268224,1752925900423,-480.0,0.00019726,2]
[373268225,1752925900433,-360.0,0.00019726,2]
[373268226,1752925900443,-480.0,0.00019726,2]
[373268227,1752925900452,-480.0,0.00019726,2]
[373268228,1752925900463,-496.45018,0.00019726,2]
[373268229,1752925900473,-480.0,0.00019726,2]
[373268230,1752925900482,-376.17385243,0.00019726,2]
[373268231,1752925900492,-480.0,0.00019726,2]
[373268232,1752925900502,-480.0,0.00019726,2]
[373268233,1752925900511,-480.0,0.00019726,2]
[373268234,1752925900521,-480.0,0.00019726,2]
[373268235,1752925900530,-480.0,0.00019726,2]
[373268236,1752925900540,-480.0,0.00019726,2]
[373268237,1752925900550,-480.0,0.00019726,2]
[373268238,1752925900560,-480.0,0.00019726,2]
[373268239,1752925900569,-480.0,0.00019726,2]
[373268240,1752925900579,-480.0,0.00019726,2]
[373268241,1752925900589,-480.0,0.00019726,2]
[373268242,1752925900599,-605.27396953,0.00019726,2]
[373268243,1752925900609,-480.0,0.00019726,2]
[373268244,1752925900618,-480.0,0.00019726,2]
[373268245,1752925900628,-480.0,0.00019726,2]
[373268246,1752925900638,-480.0,0.00019726,2]
[373268247,1752925900649,-480.0,0.00019726,2]
[373268248,1752925900658,-480.0,0.00019726,2]
[373268249,1752925900668,-480.0,0.00019726,2]
[373268250,1752925900678,-480.0,0.00019726,2]
[373268251,1752925900688,-480.0,0.00019726,2]
[373268252,1752925900697,-480.0,0.00019726,2]
[373268253,1752925900707,-480.0,0.00019726,2]
[373268254,1752925900718,-480.0,0.00019726,2]
[373268255,1752925900728,-480.0,0.00019726,2]
[373268256,1752925900738,-480.0,0.00019726,2]
[373268257,1752925900747,-480.0,0.00019726,2]
[373268258,1752925900757,-480.0,0.00019726,2]
[373268259,1752925900766,-480.0,0.00019726,2]
[373268260,1752925900776,-480.0,0.00019726,2]
[373268261,1752925900786,-480.0,0.00019726,2]
[373268262,1752925900795,-480.0,0.00019726,2]
[373268263,1752925900805,-480.0,0.00019726,2]
[373268264,1752925900815,-480.0,0.00019726,2]
[373268265,1752925900825,-623.6,0.00019726,2]
[373268266,1752925900835,-480.0,0.00019726,2]
[373268267,1752925900845,-480.0,0.00019726,2]
[373268268,1752925900855,-480.0,0.00019726,2]
[373268269,1752925900865,-480.0,0.00019726,2]
[373268270,1752925900875,-480.0,0.00019726,2]
[373268271,1752925900885,-480.0,0.00019726,2]
[373268272,1752925900895,-480.0,0.00019726,2]
[373268273,1752925900904,-480.0,0.00019726,2]
[373268274,1752925900915,-480.0,0.00019726,2]
[373268275,1752925900925,-480.0,0.00019726,2]
[373268276,1752925900934,-411.98611803,0.00019726,2]
[373268277,1752925900944,-480.0,0.00019726,2]
[373268278,1752925900954,-480.0,0.00019726,2]
[373268279,1752925900964,-480.0,0.00019726,2]
[373268280,1752925900974,-480.0,0.00019726,2]
[373268281,1752925900983,-480.0,0.00019726,2]
[373268282,1752925900993,-480.0,0.00019726,2]
[373268283,1752925901003,-480.0,0.00019726,2]
[373268284,1752925901012,-480.0,0.00019726,2]
[373268285,1752925901022,-480.0,0.00019726,2]
[373268286,1752925901031,-480.0,0.00019726,2]
[373268287,1752925901041,-480.0,0.00019726,2]
[373268288,1752925901051,-480.0,0.00019726,2]
[373268289,1752925901060,-480.0,0.00019726,2]
[373268290,1752925901070,-480.0,0.00019726,2]
[373268291,1752925901080,-480.0,0.00019726,2]
[373268292,1752925901089,-480.0,0.00019726,2]
[373268293,1752925901099,-480.0,0.00019726,2]
[373268294,1752925901109,-480.0,0.00019726,2]